[Event "Turkish Youth Teams U18 2024"]
[Site "Karaman"]
[Date "2024.04.23"]
[Round "5"]
[White "Engin, Onur Cinar"]
[Black "Dogan, Umut Anil"]
[Result "1-0"]
[ECO "C18"]
[WhiteElo "2101"]
[BlackElo "1983"]
[Annotator "TA"]
[PlyCount "159"]
[EventDate "2024.04.21"]
[EventType "team-tourn"]
[EventCountry "TUR"]
[SourceTitle "playchess.com"]
[Source "ChessBase"]
[SourceQuality "1"]
[TimeControl "5400+30"]

{[%evp 25,159,40,37,25,33,36,28,-30,-27,-22,40,31,89,97,90,97,127,116,138,141,141,138,144,143,183,182,209,210,216,222,208,200,199,179,170,130,209,226,224,204,265,200,206,0,253,259,249,256,256,256,257,267,268,272,267,264,256,226,242,212,246,0,358,264,259,226,225,199,257,245,274,271,274,271,278,278,287,270,261,297,289,280,304,277,300,0,269,264,351,262,469,395,438,438,438,312,408,262,239,218,412,403,439,401,328,394,424,424,628,584,5760,5514,5398,4807,4750,4770,29979,29980,29980,29981,29983,29984,29984,29985,29985,29986,29986,29987,29987,29988,29991,29987,29988,29986,29986,29987]} 1. e4 {[%emt 0:01:00]} e6 {[%emt 0:01:00]} 2. d4 {[%emt 0:00:00]} d5 {[%emt 0:00:30]} 3. Nc3 {[%emt 0:03:00]} Bb4 {[%emt 0:06:30]} 4. e5 {[%emt 0:05:30]} c5 {[%emt 0:02:30]} 5. Qg4 {[%emt 0:01:30]} Ne7 {[%emt 0:00:30]} 6. a3 {[%emt 0:03:30]} Bxc3+ {[%emt 0:03:30]} 7. bxc3 {[%emt 0:00:30]} Qc7 {[%emt 0:00:30]} 8. Qxg7 {[%emt 0:28:30]} Rg8 {[%emt 0:00:30]} 9. Qxh7 {[%emt 0:00:30]} cxd4 {[%emt 0:00:30]} 10. Ne2 {[%emt 0:01:30]} dxc3 {[%emt 0:02:30]} 11. f4 {[%emt 0:01:30]} Nbc6 {[%emt 0:11:30]} 12. Qd3 {[%emt 0:01:30]} Nf5 {[%emt 0:03:30]} 13. Qxc3 {[%emt 0:06:30]} Bd7 {[%emt 0:00:30]} 14. g3 {[%emt 0:02:30]} d4 {[%emt 0:00:30]} 15. Qc5 {[%emt 0:02:30]} Rc8 {[%emt 0:08:30]} 16. Bh3 {[%emt 0:05:30]} (16. Bg2 $142) 16... b6 $11 {[%emt 0:05:30]} 17. Qc4 {[%emt 0:00:00]} Qb7 {[%emt 0:02:30]} ({Don't play} 17... b5 18. Qd3 $11) (17... Nce7 $11 18. Qxc7 Rxc7) 18. Bg2 $1 $14 {[%emt 0:00:00]} Nce7 {[%emt 0:11:30]} (18... Na5 $14 19. Bxb7 Rxc4) 19. Bxb7 $16 {[%emt 0:00:30]} Rxc4 {[%emt 0:00:00]} 20. Be4 {[%emt 0:04:30][%cal Bb7e4,Be4d3,Bd3c2][%mdl 32]} Bc6 {[%emt 0:02:00][%cal Bd7c6,Bc6h1,Bh1d5,Bd5f3][%mdl 32]} 21. Bd3 {[%emt 0:03:30]} Rxc2 {[%emt 0:04:30]} 22. Bxc2 {[%emt 0:00:30]} Bxh1 {[%emt 0:00:30]} 23. Bb2 {[%emt 0:00:30]} Rh8 {[%emt 0:02:30]} 24. h4 {[%emt 0:01:30]} Ne3 {[%emt 0:03:30]} 25. Bd3 {[%emt 0:03:30]} Bd5 {[%emt 0:05:30]} 26. Rc1 {[%emt 0:02:30]} ({Don't take} 26. Nxd4 Rg8 $16) 26... Kd8 {[%emt 0:03:29]} 27. Bxd4 {[%emt 0:01:30]} ({Don't do} 27. Nxd4 $6 Rg8 $16) 27... N3f5 {[%emt 0:00:46]} 28. Bf2 {[%emt 0:00:30]} Rg8 {[%emt 0:00:49]} 29. Kd2 {[%emt 0:00:57]} Bf3 {[%emt 0:01:01]} 30. Rg1 {[%emt 0:03:48]} Bg4 {[%emt 0:01:18]} (30... Nd5 $16 {is a better defense.} 31. Bxf5 exf5) 31. Nc3 $18 {[%emt 0:00:30]} Kc8 {[%emt 0:00:30]} 32. Ne4 {[%emt 0:00:30]} Nd5 {[%emt 0:00:30]} 33. Ng5 {[%emt 0:03:21]} Nh6 {[%emt 0:02:44]} 34. Ne4 {[%emt 0:01:03]} Nf5 {[%emt 0:00:30]} 35. Be2 {[%emt 0:03:34]} Nh6 {[%emt 0:03:59]} 36. Nd6+ {[%emt 0:01:18]} Kd7 {[%emt 0:00:17]} 37. Bb5+ {[%emt 0:00:38]} Ke7 {[%emt 0:00:33]} 38. Rc1 {[%emt 0:00:26] And now Nc8+ would win.} f6 {[%emt 0:01:50]} 39. Rc8 {[%emt 0:00:30]} Rd8 {[%emt 0:02:39]} 40. exf6+ {[%emt 0:05:52]} Nxf6 {[%emt 0:00:38]} 41. Rxd8 {[%emt 0:00:29]} Kxd8 {[%emt 0:00:00]} 42. Bd4 {[%emt 0:00:20]} Nh5 {[%emt 0:00:25]} 43. Bf2 $2 {[%emt 0:00:30]} ({White must play} 43. Ne4 $18) 43... Bf3 $2 {[%emt 0:00:30][%mdl 8192]} (43... Nf6 $1 $11 {and Black has nothing to worry.} 44. Ke1 Nh5) 44. Nc4 {[%emt 0:01:28]} Ng4 {[%emt 0:02:27]} 45. Be1 {[%emt 0:00:30]} Nhf6 {[%emt 0:01:46]} 46. Kd3 {[%emt 0:02:09]} Nh6 {[%emt 0:03:04]} (46... Ke7 $142 47. Bb4+ Kd8) 47. Ne5 {[%emt 0:00:30]} Be4+ {[%emt 0:00:00]} 48. Ke2 {[%emt 0:00:04]} Kc7 {[%emt 0:00:41]} 49. Bc4 {[%emt 0:00:30]} Bf5 {[%emt 0:00:30]} 50. Kf3 {[%emt 0:00:30]} Be4+ {[%emt 0:00:30]} 51. Ke3 {[%emt 0:00:30]} Bf5 {[%emt 0:00:30]} 52. Bd3 {[%emt 0:01:06]} Bh3 {[%emt 0:01:07]} 53. Bb4 {[%emt 0:00:27]} Nf5+ {[%emt 0:00:53]} 54. Kf3 {[%emt 0:00:52] [#] g4 is the strong threat.} Nd4+ {[%emt 0:00:03]} 55. Ke3 {[%emt 0:00:21]} Nf5+ {[%emt 0:00:30]} 56. Kf2 {[%emt 0:00:30]} Ng4+ {[%emt 0:02:20]} 57. Kf3 {[%emt 0:00:17]} Nd4+ {[%emt 0:00:34]} (57... Nh2+ {might work better.} 58. Kf2 Ng4+ 59. Nxg4 Bxg4) 58. Ke4 {[%emt 0:00:38]} Nf5 {[%emt 0:00:00] [#] aiming for ...Bg2+.} 59. Nxg4 {[%emt 0:00:33]} Bxg4 {[%emt 0:00:07][%mdl 4096] Endgame. KBB-KBN} 60. Ke5 {[%emt 0:00:32]} Nxg3 {[%emt 0:00:13]} 61. Bc4 {[%emt 0:00:30]} Kd7 {[%emt 0:00:39]} 62. Kf6 {[%emt 0:00:36]} Bf5 $2 {[%emt 0:00:49]} (62... Ne4+ 63. Ke5 Nc5 64. Bxc5 bxc5) 63. Bb5+ {[%emt 0:00:27] A strong pair of Bishops.} Kd8 {[%emt 0:00:23]} 64. Be7+ {[%emt 0:00:13]} Kc7 {[%emt 0:00:30]} 65. Be8 {[%emt 0:00:30] Strongly threatening h5.} Bg4 {[%emt 0:00:30]} 66. Kg5 {[%emt 0:00:00]} Bf3 {[%emt 0:00:57]} (66... Bf5 $142 67. h5 Bh7) 67. h5 {[%emt 0:00:20] h6 would now be deadly.} Nxh5 {[%emt 0:01:08]} 68. Bxh5 {[%emt 0:00:08]} Be4 {[%emt 0:00:02]} 69. Be8 {[%emt 0:00:59]} a6 {[%emt 0:00:17]} 70. Kf6 {[%emt 0:00:33]} Bd5 {[%emt 0:00:30]} 71. Ke5 {[%emt 0:00:00] White mates.} Bb3 {[%emt 0:00:00]} 72. Bd6+ {[%emt 0:00:12]} Kd8 {[%emt 0:00:04]} 73. Bf7 {[%emt 0:00:29]} Kd7 {[%emt 0:00:28]} 74. f5 {[%emt 0:00:00]} exf5 {[%emt 0:00:36]} 75. Bxb3 {[%emt 0:00:03]} f4 {[%emt 0:00:00]} 76. Be6+ {[%emt 0:00:59]} Kc6 {[%emt 0:00:16]} 77. Bd5+ {[%emt 0:00:30]} Kb5 {[%emt 0:00:00]} 78. Kxf4 {[%emt 0:00:00]} Ka4 {[%emt 0:00:05]} 79. Bb7 {[%emt 0:00:10]} Ka5 {[%emt 0:00:30]} 80. Ke4 {[%emt 0:00:00] Weighted Error Value: White=0.28 (precise) /Black=0.27 (precise) .  Loses game:     	---       	Black=1      Missed win:     	White=1     	---        Mistake:       	White=1     	Black=7      Inaccurate:     	White=1     	Black=3      OK:         	White=25    	Black=20     Best:        	White=5     	Black=3      Strong:       	White=1     	---} 1-0

[Event "Turkish Youth Teams U18 2024"]
[Site "Karaman"]
[Date "2024.04.23"]
[Round "5"]
[White "Yildiz, Serdar Murat"]
[Black "Akin, Duru"]
[Result "1-0"]
[ECO "B77"]
[WhiteElo "2021"]
[BlackElo "1702"]
[Annotator "TA"]
[PlyCount "57"]
[EventDate "2024.04.21"]
[EventType "team-tourn"]
[EventCountry "TUR"]
[SourceTitle "playchess.com"]
[Source "ChessBase"]
[SourceQuality "1"]
[TimeControl "5400+30"]

{[%evp 20,57,100,82,79,84,131,97,88,96,153,73,126,135,159,168,306,259,897,891,722,788,695,581,582,564,1033,1027,1045,1035,1103,1122,1122,1086,1112,1127,1092,1066,1177,1170]} 1. e4 {[%emt 0:01:00]} c5 {[%emt 0:01:00]} 2. Nf3 {[%emt 0:00:00]} d6 {[%emt 0:00:00]} 3. d4 {[%emt 0:00:00]} cxd4 {[%emt 0:00:00]} 4. Nxd4 {[%emt 0:00:30]} Nf6 {[%emt 0:00:30]} 5. Nc3 {[%emt 0:00:30]} g6 {[%emt 0:00:30]} 6. Be3 {[%emt 0:00:00]} Bg7 {[%emt 0:00:00]} 7. f3 {[%emt 0:00:00]} Nc6 {[%emt 0:00:00]} 8. Qd2 {[%emt 0:00:30]} O-O {[%emt 0:00:00]} 9. Bc4 {[%emt 0:00:00]} Nd7 {[%emt 0:00:00]} 10. O-O-O {[%emt 0:00:00]} Nb6 {[%emt 0:00:30] [#]} 11. Be2 $1 {[%emt 0:00:00]} Na5 {[%emt 0:02:30]} 12. b3 {[%emt 0:03:00] Wards off Nac4} Bd7 {[%emt 0:03:30]} (12... a6 $142) 13. Bh6 {[%emt 0:06:30]} Bxh6 {[%emt 0:14:30] White is better.} 14. Qxh6 {[%emt 0:00:30]} Qc7 {[%emt 0:00:00]} (14... Rc8 $142) 15. Rd3 {[%emt 0:14:30] White has more active pieces.} (15. Nd5 $142 Nxd5 16. exd5) 15... Rfc8 {[%emt 0:13:00]} ({Better is} 15... Kh8) 16. f4 $16 {[%emt 0:14:30]} Qc5 {[%emt 0:12:30]} 17. Nf3 $40 {[%emt 0:11:30][%mdl 128] aiming for Ng5. White goes for the king.} Qa3+ {[%emt 0:15:30]} (17... Qh5 {is a better defense.} 18. Qxh5 gxh5) 18. Kd2 {[%emt 0:07:30][%cal Bc1d2,Bd2e1,Be1f2,Bf2g3][%mdl 32]} Nbc4+ $2 {[%emt 0:11:30]} (18... Rxc3 19. Rxc3 Qb4) 19. bxc4 $18 {[%emt 0:01:30] White is clearly winning.} Nxc4+ {[%emt 0:00:30]} 20. Ke1 {[%emt 0:01:30] Ng5 would kill now.} Nb2 {[%emt 0:00:30]} 21. Nd5 {[%emt 0:05:30] Intending Ng5 and mate.} (21. Nd1 Nxd3+ 22. Bxd3 f6 $16) 21... Nxd3+ {[%emt 0:00:30]} 22. Bxd3 {[%emt 0:00:30][%cal Be2d3,Bd3c2,Bc2d1,Bd1b3][%mdl 32]} Rxc2 {[%emt 0:08:50]} 23. Bxc2 {[%emt 0:03:30] Threatening mate with Ng5.} Qc1+ {[%emt 0:00:05]} 24. Bd1 {[%emt 0:01:30][%cal Of3g5] White threatens Ng5! and mate.} Ba4 {[%emt 0:01:30] [#]} 25. Kf2 $1 {[%emt 0:06:30]} Bc6 {[%emt 0:10:12]} 26. Nxe7+ {[%emt 0:00:30]} Kh8 {[%emt 0:03:24]} 27. Nxc6 {[%emt 0:01:30]} bxc6 {[%emt 0:00:18]} 28. Bb3 {[%emt 0:01:46]} Qb2+ {[%emt 0:02:05]} 29. Kg3 {[%emt 0:00:14] Weighted Error Value: White=0.36/Black=0.42.  Mistake:       	White=1     	Black=5      Inaccurate:     	---       	Black=1      OK:         	White=4     	Black=2      Best:        	---       	Black=1} 1-0

[Event "Turkish Youth Teams U18 2024"]
[Site "Karaman"]
[Date "2024.04.23"]
[Round "5"]
[White "Yilmaz, Kerem Tuna"]
[Black "Gungor, Cihan Akif"]
[Result "1/2-1/2"]
[ECO "C68"]
[WhiteElo "2009"]
[BlackElo "1927"]
[Annotator "TA"]
[PlyCount "81"]
[EventDate "2024.04.21"]
[EventType "team-tourn"]
[EventCountry "TUR"]
[SourceTitle "playchess.com"]
[Source "ChessBase"]
[SourceQuality "1"]
[TimeControl "5400+30"]

{[%evp 21,81,-22,-22,-35,-24,-33,-25,-36,-33,-40,-31,-48,-31,-44,-31,-50,-27,-34,-15,-37,68,70,128,135,228,231,267,291,422,279,276,278,267,272,262,284,319,-535,67,2,12,0,0,-577,-125,-581,-126,-562,-89,-572,-270,-499,-16,-360,-133,-432,0,-11,0,-29,0,-87]} 1. e4 {[%emt 0:01:00]} e5 {[%emt 0:01:00]} 2. Nf3 {[%emt 0:00:30]} Nc6 {[%emt 0:00:30]} 3. Bb5 {[%emt 0:00:00]} a6 {[%emt 0:00:00]} 4. Bxc6 {[%emt 0:00:00]} dxc6 {[%emt 0:00:00]} 5. Nc3 {[%emt 0:00:30]} f6 {[%emt 0:00:00]} 6. d4 {[%emt 0:00:00]} exd4 {[%emt 0:00:00]} 7. Qxd4 {[%emt 0:00:00]} Qxd4 {[%emt 0:00:30]} 8. Nxd4 {[%emt 0:00:00]} Bd7 {[%emt 0:03:30]} 9. Be3 {[%emt 0:06:00]} O-O-O {[%emt 0:01:30]} 10. O-O-O {[%emt 0:01:30]} Ne7 {[%emt 0:02:30]} 11. Nb3 {[%emt 0:16:30]} b6 {[%emt 0:00:30]} 12. f3 {[%emt 0:11:30]} Ng6 {[%emt 0:01:30]} 13. Ne2 {[%emt 0:01:30]} Ne5 {[%emt 0:02:30]} 14. h4 {[%emt 0:18:30] Black has an edge.} Kb7 {[%emt 0:04:30]} 15. h5 {[%emt 0:02:30]} Bd6 {[%emt 0:01:30]} 16. Bf4 {[%emt 0:10:30]} c5 {[%emt 0:12:30]} 17. Kb1 {[%emt 0:04:30]} Be6 {[%emt 0:12:30]} 18. Nc3 {[%emt 0:06:05]} c6 {[%emt 0:03:30]} 19. Nc1 {[%emt 0:03:15]} b5 {[%emt 0:03:30]} 20. N1e2 {[%emt 0:02:37]} b4 {[%emt 0:02:30]} (20... Rd7 $15) 21. Na4 $14 {[%emt 0:00:38]} Bc4 {[%emt 0:01:30] [#]} (21... Rhe8 $14) 22. Ng3 $1 $16 {[%emt 0:00:02]} Bb5 {[%emt 0:00:30]} (22... Be6 $16 {was necessary.}) 23. Nf5 $1 $18 {[%emt 0:00:30][%csl LRd6,LRg7]} Bxa4 {[%emt 0:00:30]} 24. Nxd6+ {[%emt 0:02:21]} Kc7 {[%emt 0:00:30]} (24... Kb6 {was worth a try.} 25. h6 (25. Bxe5 fxe5 26. Nf7 Rxd1+ 27. Rxd1 Re8 $18) 25... gxh6 26. Rxh6 Nf7 27. Rxf6 (27. Nxf7 Rxd1+ 28. Bc1 Rg8 $17) 27... Nxd6) 25. Bxe5 {[%emt 0:05:49]} fxe5 {[%emt 0:00:30]} 26. Nf7 {[%emt 0:00:00][%csl LRd8,LRe5,LRh8]} Rxd1+ {[%emt 0:00:30]} 27. Rxd1 {[%emt 0:00:11][%mdl 4096] Endgame. KRB-KRN} Re8 {[%emt 0:00:30]} 28. b3 {[%emt 0:00:30]} Bb5 {[%emt 0:00:30] [#]} 29. Nh6 $4 {[%emt 0:00:30][%mdl 8192]} c4 $2 {[%emt 0:00:30]} (29... gxh6 $19 30. a4 bxa3) 30. bxc4 {[%emt 0:00:30]} (30. Nf5 $14) 30... Bxc4 $11 {[%emt 0:00:30]} 31. Ng4 {[%emt 0:00:30]} Be6 {[%emt 0:00:30]} 32. Nf6 $2 {[%emt 0:00:30][%mdl 8192]} Rh8 $2 {[%emt 0:00:30]} (32... gxf6 $19 33. Rd2 Rd8 34. Rxd8 Kxd8) 33. Rh1 $2 {[%emt 0:00:30][%mdl 8192]} h6 $2 {[%emt 0:00:30]} (33... gxf6 $19 {and Black stays clearly on top.} 34. g3 a5) 34. g3 $2 {[%emt 0:00:30][%mdl 8192]} Kd6 $2 {[%emt 0:00:30]} (34... gxf6 $19 {is more deadly.} 35. f4 exf4 36. gxf4 Rg8) 35. f4 $2 {[%emt 0:00:30][%mdl 8192]} Ke7 {[%emt 0:00:30]} (35... gxf6 $142 36. Rd1+ Ke7) 36. fxe5 $2 {[%emt 0:00:30]} (36. f5 {is the only way for White.} gxf6 (36... Kxf6 $2 37. fxe6 Kxe6 38. Rg1 $17) 37. fxe6) 36... Bf7 $2 {[%emt 0:00:30]} (36... gxf6 $19 37. exf6+ Kxf6) 37. Rd1 $2 {[%emt 0:00:30][%mdl 8192]} Rd8 $2 {[%emt 0:00:30]} (37... gxf6 $19 {has better winning chances.} 38. exf6+ Kxf6 39. Rd6+ Kg5 40. Rxc6 Re8 (40... Kxh5 $2 41. Rxa6 Re8 42. Ra7 $19) (40... Bxh5 $2 41. a3 $19) 41. Rxa6 Rxe4 (41... Bxh5 $2 42. e5 $19) (41... Kxh5 $2 42. Ra7 $19)) 38. Rh1 $2 {[%emt 0:00:30][%mdl 8192]} (38. Rxd8 $17 Kxd8 39. Ng4) 38... Rh8 $2 {[%emt 0:00:30]} ({Better is} 38... gxf6 $19 39. exf6+ Kxf6 40. Rf1+ Ke7) 39. Ng4 {[%emt 0:00:30]} Ke6 {[%emt 0:00:30][%mdl 1024] Black has compensation.} 40. Ne3 {[%emt 0:00:30]} Be8 {[%emt 0:00:30]} 41. Rf1 {[%emt 0:04:52] Weighted Error Value: White=1.59/Black=1.49.  Loses game:     	White=6     	---        Missed win:     	White=1     	Black=7      Mistake:       	White=3     	Black=5      Inaccurate:     	White=2     	Black=1      OK:         	White=5     	Black=6      Best:        	White=1     	---        Strong:       	White=1     	---} (41. Nc4 $11 {keeps the balance.}) 1/2-1/2

[Event "Turkish Youth Teams U18 2024"]
[Site "Karaman"]
[Date "2024.04.23"]
[Round "5"]
[White "Buyuk, Eymen Eren"]
[Black "Oktem, Ege Tuna"]
[Result "0-1"]
[ECO "C01"]
[WhiteElo "1998"]
[BlackElo "2076"]
[Annotator "TA"]
[PlyCount "70"]
[EventDate "2024.04.21"]
[EventType "team-tourn"]
[EventCountry "TUR"]
[SourceTitle "playchess.com"]
[Source "ChessBase"]
[SourceQuality "1"]
[TimeControl "5400+30"]

{[%evp 10,70,0,-25,-1,-2,35,45,45,50,59,53,34,23,28,20,87,94,99,74,82,74,79,83,110,45,45,68,127,120,136,124,133,94,99,95,86,79,77,47,35,-9,-8,-18,-8,-7,-8,-8,-8,-8,-26,-17,-9,-34,0,-118,-37,-267,-252,-29985,-29986,-29990,-29991]} 1. e4 {[%emt 0:01:00]} e6 {[%emt 0:01:00]} 2. d4 {[%emt 0:00:30]} d5 {[%emt 0:00:30]} 3. Nc3 {[%emt 0:00:00]} Nf6 {[%emt 0:00:00]} 4. exd5 {[%emt 0:00:00]} exd5 {[%emt 0:00:00]} 5. Bg5 {[%emt 0:00:30]} Be7 {[%emt 0:01:30]} 6. Qd2 {[%emt 0:02:30]} c6 {[%emt 0:08:30]} 7. Bd3 {[%emt 0:09:30]} Ne4 {[%emt 0:04:30]} 8. Bxe7 {[%emt 0:01:30]} Qxe7 {[%emt 0:00:30] White is slightly better.} 9. Bxe4 {[%emt 0:00:30]} f5 {[%emt 0:00:30] [#] Against f3} 10. O-O-O $1 {[%emt 0:00:30][%cal Oe4d5] Black must now prevent Bxd5!} fxe4 {[%emt 0:00:30]} 11. Re1 {[%emt 0:02:30]} O-O {[%emt 0:09:30]} 12. f3 {[%emt 0:07:30][%cal Rf3e4]} b5 {[%emt 0:04:30]} (12... Bf5 $1 $11 {keeps the balance.}) 13. fxe4 $16 {[%emt 0:27:30]} b4 {[%emt 0:00:30]} 14. Na4 {[%emt 0:00:30]} dxe4 {[%emt 0:00:30]} 15. Nc5 {[%emt 0:01:30]} Bf5 {[%emt 0:00:30]} 16. Qxb4 {[%emt 0:06:30]} Nd7 {[%emt 0:03:30]} 17. Qc4+ {[%emt 0:00:30]} (17. Ne2 $16) 17... Kh8 $14 {[%emt 0:00:30]} 18. Nxd7 {[%emt 0:03:30]} Qxd7 {[%emt 0:01:30]} (18... Qg5+ $1 $14 19. Kb1 Bxd7) 19. Ne2 $16 {[%emt 0:01:30]} Be6 {[%emt 0:01:30] [#]} 20. Qc5 {[%emt 0:01:30]} Rf5 {[%emt 0:02:30]} 21. Qa3 {[%emt 0:00:30]} Rf2 {[%emt 0:21:30][%cal Oe6c4]} 22. Rhf1 {[%emt 0:01:30]} Rxg2 {[%emt 0:00:30]} 23. Nf4 {[%emt 0:04:30][%csl LRe4,LRg2]} Rxh2 {[%emt 0:01:30]} 24. Nxe6 {[%emt 0:00:30]} (24. Rxe4 Bf5 25. Ne2 Rh1 $15 (25... Bxe4 26. Rf8+ Rxf8 27. Qxf8#)) 24... Qxe6 {[%emt 0:00:00]} 25. Rxe4 {[%emt 0:01:30]} Rxc2+ {[%emt 0:01:00]} 26. Kb1 {[%emt 0:00:00]} (26. Kd1 $5 Rc1+ $8 (26... Qxe4 27. Rf8+ Rxf8 28. Qxf8#) (26... Rd2+ $2 27. Kxd2 Qh6+ 28. Kc2 $18) 27. Kxc1 Qc4+ (27... Qxe4 28. Rf8+ Rxf8 29. Qxf8#) 28. Kd2 Qxf1 29. Qxa7 $11) 26... Rc1+ {[%emt 0:00:30]} (26... Qxe4 27. Rf8+ Rxf8 28. Qxf8#) 27. Kxc1 {[%emt 0:00:00]} Qc4+ {[%emt 0:00:00]} (27... Qxe4 28. Rf8+ Rxf8 29. Qxf8#) 28. Kd2 $1 {[%emt 0:20:03]} Qxf1 {[%emt 0:00:00]} 29. Qxa7 $1 $11 {[%emt 0:01:12][%mdl 4096] Endgame. KQR-KQR} Qg2+ {[%emt 0:00:30]} 30. Kc3 {[%emt 0:00:14][%cal Ra7a8]} Qf3+ {[%emt 0:02:30]} (30... Rxa7 31. Re8#) 31. Kc4 {[%emt 0:00:23]} Qf1+ {[%emt 0:01:30]} (31... Rxa7 32. Re8+) 32. Kc3 {[%emt 0:00:30] [#]} (32. Kb4 $11 {was the only way to keep the balance.} Rd8 (32... Rxa7 33. Re8+) (32... Qb5+ 33. Kc3 $11) 33. Qc7 Qb5+ 34. Kc3) 32... Qc1+ {[%emt 0:01:30]} (32... Rxa7 33. Re8+) (32... Rf8 $1 $17 {[%cal Rf8f3] ( -> ...Rf3+)} 33. Qe7 Qc1+ 34. Kd3 Rg8) 33. Kb3 $2 {[%emt 0:02:58]} (33. Kd3 $15 Rg8 (33... Rxa7 34. Re8#) (33... Qf1+ 34. Kd2 $15) 34. Re2) 33... Rf8 $19 {[%emt 0:01:30] And now ...Rf3+ would win.} ({Inferior is} 33... Rxa7 34. Re8#) (33... Qd1+ 34. Kc3 Qc1+ (34... Rxa7 35. Re8#) (34... Qf3+ 35. Kd2 $15) 35. Kd3 $11) 34. Qc5 $2 {[%emt 0:00:30]} (34. Re5 $19) 34... Rb8+ {[%emt 0:00:30]} 35. Ka4 {[%emt 0:00:30]} Qxb2 {[%emt 0:00:30] Weighted Error Value: White=0.46/Black=0.16 (very precise) .  Loses game:     	White=1     	---        Mistake:       	White=3     	Black=3      Inaccurate:     	White=2     	Black=2      OK:         	White=10    	Black=13     Best:        	White=4     	Black=5      Strong:       	White=2     	---} 0-1